[Event "Titled Tuesday Blitz February 14 Early 2023"]
[White "Zahid, Sanatan"]
[Black "Zaragatski, Ilja"]
[WhiteFideId "10201963"]
[BlackFideId "4655192"]
[WhiteElo "1930"]
[BlackElo "2472"]
[Result "1/2-1/2"]
[Round "04"]
[TimeControl "180+2"]
[Date "2023.02.15"]
[WhiteClock "0:00:18"]
[BlackClock "0:00:09"]

1. d4 {[%clk 0:03:00]}  Nf6 {[%clk 0:02:57]} 2. Nc3 {[%clk 0:03:01]}  c5 {[%clk 0:02:54]} 3. d5 {[%clk 0:03:00]}  g6 {[%clk 0:02:54]} 4. e4 {[%clk 0:03:00]}  d6 {[%clk 0:02:54]} 5. f4 {[%clk 0:02:57]}  Bg7 {[%clk 0:02:54]} 6. Bb5+ {[%clk 0:02:57]}  Nfd7 {[%clk 0:02:51]} 7. a4 {[%clk 0:02:57]}  Na6 {[%clk 0:02:50]} 8. Nf3 {[%clk 0:02:56]}  Nc7 {[%clk 0:02:49]} 9. Bd3 {[%clk 0:02:56]}  a6 {[%clk 0:02:47]} 10. Kf1 {[%clk 0:02:55]}  Rb8 {[%clk 0:02:37]} 11. a5 {[%clk 0:02:54]}  b5 {[%clk 0:02:34]} 12. axb6 {[%clk 0:02:53]}  Rxb6 {[%clk 0:02:31]} 13. g3 {[%clk 0:02:46]}  Nb5 {[%clk 0:02:22]} 14. Ne2 {[%clk 0:02:35]}  Nf6 {[%clk 0:02:19]} 15. Kg2 {[%clk 0:02:32]}  O-O {[%clk 0:01:57]} 16. c4 {[%clk 0:02:30]}  Nc7 {[%clk 0:01:54]} 17. Qc2 {[%clk 0:02:25]}  e6 {[%clk 0:01:53]} 18. Nc3 {[%clk 0:02:23]}  exd5 {[%clk 0:01:53]} 19. cxd5 {[%clk 0:02:24]}  Re8 {[%clk 0:01:52]} 20. Re1 {[%clk 0:02:24]}  Bg4 {[%clk 0:01:47]} 21. Nd2 {[%clk 0:02:22]}  Nfxd5 {[%clk 0:01:44]} 22. Nc4 {[%clk 0:02:17]}  Nb4 {[%clk 0:01:36]} 23. Qd2 {[%clk 0:02:14]}  Rb8 {[%clk 0:01:34]} 24. Ne3 {[%clk 0:02:06]}  Be6 {[%clk 0:01:31]} 25. Ne2 {[%clk 0:01:53]}  Qc8 {[%clk 0:01:29]} 26. Bb1 {[%clk 0:01:49]}  Nb5 {[%clk 0:01:24]} 27. Kf2 {[%clk 0:01:42]}  Bd7 {[%clk 0:01:23]} 28. Rd1 {[%clk 0:01:37]}  Bc6 {[%clk 0:01:21]} 29. Nc3 {[%clk 0:01:25]}  Qh3 {[%clk 0:01:17]} 30. Kg1 {[%clk 0:01:25]}  Nd4 {[%clk 0:01:15]} 31. Qg2 {[%clk 0:01:23]}  Qxg2+ {[%clk 0:01:05]} 32. Kxg2 {[%clk 0:01:24]}  f5 {[%clk 0:01:04]} 33. Kf2 {[%clk 0:01:10]}  fxe4 {[%clk 0:01:04]} 34. Nc4 {[%clk 0:01:03]}  d5 {[%clk 0:00:57]} 35. Na5 {[%clk 0:01:03]}  Ba8 {[%clk 0:00:56]} 36. Be3 {[%clk 0:01:03]}  Ne6 {[%clk 0:00:53]} 37. Bc1 {[%clk 0:00:54]}  Nd3+ {[%clk 0:00:50]} 38. Bxd3 {[%clk 0:00:49]}  exd3 {[%clk 0:00:51]} 39. Rxd3 {[%clk 0:00:50]}  d4 {[%clk 0:00:51]} 40. Ne2 {[%clk 0:00:50]}  Be4 {[%clk 0:00:47]} 41. Rd1 {[%clk 0:00:43]}  Nc7 {[%clk 0:00:47]} 42. Nc4 {[%clk 0:00:42]}  Bd5 {[%clk 0:00:46]} 43. Ne5 {[%clk 0:00:39]}  Bxe5 {[%clk 0:00:43]} 44. fxe5 {[%clk 0:00:40]}  Rxe5 {[%clk 0:00:44]} 45. Nf4 {[%clk 0:00:41]}  Bc6 {[%clk 0:00:38]} 46. Ra5 {[%clk 0:00:39]}  g5 {[%clk 0:00:37]} 47. Nd3 {[%clk 0:00:38]}  Rf5+ {[%clk 0:00:38]} 48. Kg1 {[%clk 0:00:38]}  Rb5 {[%clk 0:00:35]} 49. Ra3 {[%clk 0:00:37]}  c4 {[%clk 0:00:32]} 50. Nf2 {[%clk 0:00:34]}  Ne6 {[%clk 0:00:29]} 51. Re1 {[%clk 0:00:27]}  Rbe5 {[%clk 0:00:29]} 52. Bd2 {[%clk 0:00:26]}  Rxe1+ {[%clk 0:00:28]} 53. Bxe1 {[%clk 0:00:26]}  Re5 {[%clk 0:00:29]} 54. Ra1 {[%clk 0:00:26]}  h5 {[%clk 0:00:28]} 55. Bb4 {[%clk 0:00:24]}  Kf7 {[%clk 0:00:27]} 56. Rf1 {[%clk 0:00:23]}  Kg6 {[%clk 0:00:27]} 57. Rc1 {[%clk 0:00:20]}  Bd5 {[%clk 0:00:26]} 58. Ra1 {[%clk 0:00:19]}  Bb7 {[%clk 0:00:25]} 59. Rc1 {[%clk 0:00:19]}  Bd5 {[%clk 0:00:18]} 60. Kf1 {[%clk 0:00:19]}  Rf5 {[%clk 0:00:16]} 61. Ra1 {[%clk 0:00:18]}  Bb7 {[%clk 0:00:12]} 62. Ke2 {[%clk 0:00:18]}  Re5+ {[%clk 0:00:11]} 63. Kf1 {[%clk 0:00:18]}  h4 {[%clk 0:00:11]} 64. gxh4 {[%clk 0:00:18]}  gxh4 {[%clk 0:00:12]} 65. Bd2 {[%clk 0:00:17]}  Ng5 {[%clk 0:00:08]} 66. Bf4 {[%clk 0:00:11]}  Rf5 {[%clk 0:00:09]} 67. Bxg5 {[%clk 0:00:12]}  Kxg5 {[%clk 0:00:09]} 68. Rd1 {[%clk 0:00:12]}  Rf4 {[%clk 0:00:08]} 69. Ra1 {[%clk 0:00:11]}  Kf5 {[%clk 0:00:06]} 70. Ra5+ {[%clk 0:00:10]}  Ke6 {[%clk 0:00:06]} 71. Ke2 {[%clk 0:00:10]}  Rf5 {[%clk 0:00:05]} 72. Ra1 {[%clk 0:00:07]}  Re5+ {[%clk 0:00:06]} 73. Kd2 {[%clk 0:00:07]}  Rf5 {[%clk 0:00:06]} 74. Re1+ {[%clk 0:00:07]}  Kd5 {[%clk 0:00:07]} 75. Ng4 {[%clk 0:00:08]}  Rg5 {[%clk 0:00:05]} 76. Nf6+ {[%clk 0:00:08]}  Kc6 {[%clk 0:00:03]} 77. Re6+ {[%clk 0:00:08]}  Kc7 {[%clk 0:00:02]} 78. Re7+ {[%clk 0:00:08]}  Kb6 {[%clk 0:00:03]} 79. Nd7+ {[%clk 0:00:08]}  Ka7 {[%clk 0:00:02]} 80. Kc1 {[%clk 0:00:09]}  Rg1+ {[%clk 0:00:02]} 81. Kc2 {[%clk 0:00:09]}  Rg2+ {[%clk 0:00:03]} 82. Kb1 {[%clk 0:00:10]}  Bc6 {[%clk 0:00:03]} 83. Ne5+ {[%clk 0:00:10]}  Kb6 {[%clk 0:00:04]} 84. Re6 {[%clk 0:00:10]}  Kc5 {[%clk 0:00:05]} 85. Nxc6 {[%clk 0:00:10]}  Kd5 {[%clk 0:00:05]} 86. Rh6 {[%clk 0:00:10]}  d3 {[%clk 0:00:06]} 87. Nb4+ {[%clk 0:00:11]}  Kc5 {[%clk 0:00:05]} 88. Nxa6+ {[%clk 0:00:11]}  Kd4 {[%clk 0:00:05]} 89. Rxh4+ {[%clk 0:00:11]}  Ke3 {[%clk 0:00:05]} 90. Nc5 {[%clk 0:00:12]}  Rg1+ {[%clk 0:00:06]} 91. Ka2 {[%clk 0:00:12]}  d2 {[%clk 0:00:07]} 92. Re4+ {[%clk 0:00:12]}  Kf3 {[%clk 0:00:07]} 93. Rd4 {[%clk 0:00:12]}  d1=Q {[%clk 0:00:08]} 94. Rxd1 {[%clk 0:00:12]}  Rxd1 {[%clk 0:00:08]} 95. Na4 {[%clk 0:00:12]}  Ke3 {[%clk 0:00:07]} 96. Ka3 {[%clk 0:00:12]}  Kd4 {[%clk 0:00:07]} 97. Kb4 {[%clk 0:00:12]}  Rd2 {[%clk 0:00:07]} 98. h4 {[%clk 0:00:12]}  Rh2 {[%clk 0:00:08]} 99. Nb6 {[%clk 0:00:13]}  Rxh4 {[%clk 0:00:07]} 100. Nxc4 {[%clk 0:00:13]}  Kd5 {[%clk 0:00:07]} 101. b3 {[%clk 0:00:13]}  Rxc4+ {[%clk 0:00:07]} 102. bxc4+ {[%clk 0:00:14]}  Kc6 {[%clk 0:00:07]} 103. c5 {[%clk 0:00:15]}  Kc7 {[%clk 0:00:07]} 104. Kb5 {[%clk 0:00:16]}  Kb7 {[%clk 0:00:07]} 105. c6+ {[%clk 0:00:16]}  Kc7 {[%clk 0:00:08]} 106. Kc5 {[%clk 0:00:16]}  Kc8 {[%clk 0:00:09]} 107. Kd6 {[%clk 0:00:17]}  Kd8 {[%clk 0:00:09]} 108. Kd5 {[%clk 0:00:18]}  Kc7 {[%clk 0:00:08]} 109. Kc5 {[%clk 0:00:18]}  Kc8 {[%clk 0:00:09]} 110. c7 {[%clk 0:00:18]}  Kxc7 {[%clk 0:00:09]} 1/2-1/2


[Site "https://www.chess.com"]

[Event "Titled Tuesday Blitz February 14 Early 2023"]
[White "Novikov, Evgenij"]
[Black "Mahdavi, Reza"]
[WhiteFideId "4125380"]
[BlackFideId "12595926"]
[WhiteElo "2276"]
[BlackElo "2339"]
[Result "0-1"]
[Round "04"]
[TimeControl "180+2"]
[Date "2023.02.15"]
[WhiteClock "0:00:02"]
[BlackClock "0:00:11"]

1. Nf3 {[%clk 0:03:00]}  Nf6 {[%clk 0:02:58]} 2. g3 {[%clk 0:02:59]}  g6 {[%clk 0:02:58]} 3. Bg2 {[%clk 0:02:59]}  Bg7 {[%clk 0:02:59]} 4. O-O {[%clk 0:03:00]}  O-O {[%clk 0:02:58]} 5. d4 {[%clk 0:03:00]}  d6 {[%clk 0:02:58]} 6. c4 {[%clk 0:02:58]}  c5 {[%clk 0:02:49]} 7. dxc5 {[%clk 0:02:50]}  dxc5 {[%clk 0:02:47]} 8. Nc3 {[%clk 0:02:50]}  Nc6 {[%clk 0:02:42]} 9. Be3 {[%clk 0:02:44]}  Qa5 {[%clk 0:02:39]} 10. h3 {[%clk 0:02:41]}  Qb4 {[%clk 0:02:16]} 11. Qb3 {[%clk 0:02:39]}  Be6 {[%clk 0:02:05]} 12. Nd2 {[%clk 0:02:31]}  Rfd8 {[%clk 0:02:01]} 13. a3 {[%clk 0:02:18]}  Qxb3 {[%clk 0:01:55]} 14. Nxb3 {[%clk 0:02:19]}  Bxc4 {[%clk 0:01:51]} 15. Nxc5 {[%clk 0:02:18]}  Rab8 {[%clk 0:01:46]} 16. b3 {[%clk 0:02:02]}  Nd5 {[%clk 0:01:34]} 17. Nxd5 {[%clk 0:01:46]}  Bxd5 {[%clk 0:01:34]} 18. Rac1 {[%clk 0:01:38]}  Bxg2 {[%clk 0:01:25]} 19. Kxg2 {[%clk 0:01:39]}  Bd4 {[%clk 0:01:18]} 20. Bxd4 {[%clk 0:01:32]}  Nxd4 {[%clk 0:01:19]} 21. e3 {[%clk 0:01:33]}  Nf5 {[%clk 0:01:19]} 22. Rfd1 {[%clk 0:01:28]}  b6 {[%clk 0:01:19]} 23. Na6 {[%clk 0:01:17]}  Rbc8 {[%clk 0:01:16]} 24. Rxd8+ {[%clk 0:01:13]}  Rxd8 {[%clk 0:01:17]} 25. g4 {[%clk 0:01:06]}  Nh4+ {[%clk 0:01:17]} 26. Kg3 {[%clk 0:01:05]}  g5 {[%clk 0:01:17]} 27. Nb4 {[%clk 0:00:50]}  f6 {[%clk 0:01:06]} 28. Nc6 {[%clk 0:00:44]}  Rd7 {[%clk 0:01:04]} 29. Nd4 {[%clk 0:00:44]}  Kf7 {[%clk 0:01:00]} 30. Rc8 {[%clk 0:00:39]}  e5 {[%clk 0:00:56]} 31. Nf5 {[%clk 0:00:39]}  Nxf5+ {[%clk 0:00:49]} 32. gxf5 {[%clk 0:00:40]}  h5 {[%clk 0:00:47]} 33. h4 {[%clk 0:00:35]}  g4 {[%clk 0:00:42]} 34. Rh8 {[%clk 0:00:33]}  Kg7 {[%clk 0:00:42]} 35. Ra8 {[%clk 0:00:27]}  Rc7 {[%clk 0:00:36]} 36. f3 {[%clk 0:00:25]}  Rc3 {[%clk 0:00:27]} 37. Rxa7+ {[%clk 0:00:24]}  Kh6 {[%clk 0:00:25]} 38. Kf2 {[%clk 0:00:15]}  Rc2+ {[%clk 0:00:22]} 39. Kg3 {[%clk 0:00:16]}  Rc3 {[%clk 0:00:23]} 40. fxg4 {[%clk 0:00:12]}  Rxe3+ {[%clk 0:00:23]} 41. Kf2 {[%clk 0:00:12]}  Re4 {[%clk 0:00:23]} 42. Rf7 {[%clk 0:00:07]}  Rf4+ {[%clk 0:00:21]} 43. Ke3 {[%clk 0:00:07]}  hxg4 {[%clk 0:00:20]} 44. Rxf6+ {[%clk 0:00:08]}  Kh5 {[%clk 0:00:20]} 45. Rxb6 {[%clk 0:00:03]}  Rxf5 {[%clk 0:00:12]} 46. Rb8 {[%clk 0:00:03]}  Kxh4 {[%clk 0:00:12]} 47. Rh8+ {[%clk 0:00:02]}  Kg3 {[%clk 0:00:13]} 48. Ke4 {[%clk 0:00:03]}  Rf3 {[%clk 0:00:13]} 49. Kxe5 {[%clk 0:00:02]}  Rxb3 {[%clk 0:00:14]} 50. a4 {[%clk 0:00:02]}  Ra3 {[%clk 0:00:14]} 51. Rg8 {[%clk 0:00:01]}  Rxa4 {[%clk 0:00:13]} 52. Rg7 {[%clk 0:00:01]}  Kf2 {[%clk 0:00:12]} 53. Kf5 {[%clk 0:00:01]}  g3 {[%clk 0:00:12]} 54. Rf7 {[%clk 0:00:01]}  g2 {[%clk 0:00:12]} 55. Kg5+ {[%clk 0:00:02]}  Kg3 {[%clk 0:00:12]} 56. Kh5 {[%clk 0:00:02]}  Rh4+ {[%clk 0:00:11]} 0-1


[Site "https://www.chess.com"]

[Event "Titled Tuesday Blitz February 14 Early 2023"]
[White "Donskov, Anatoly"]
[Black "Csonka, Balazs"]
[WhiteFideId "24143413"]
[BlackFideId "742910"]
[WhiteElo "2279"]
[BlackElo "2496"]
[Result "1-0"]
[Round "04"]
[TimeControl "180+2"]
[Date "2023.02.15"]
[WhiteClock "0:00:29"]
[BlackClock "0:00:02"]

1. e4 {[%clk 0:03:00]}  e5 {[%clk 0:02:58]} 2. Nf3 {[%clk 0:02:59]}  Nc6 {[%clk 0:02:58]} 3. Bb5 {[%clk 0:02:59]}  a6 {[%clk 0:02:57]} 4. Ba4 {[%clk 0:03:00]}  Nf6 {[%clk 0:02:55]} 5. Qe2 {[%clk 0:03:00]}  Be7 {[%clk 0:02:30]} 6. c3 {[%clk 0:02:53]}  b5 {[%clk 0:02:27]} 7. Bb3 {[%clk 0:02:48]}  O-O {[%clk 0:02:27]} 8. O-O {[%clk 0:02:48]}  d5 {[%clk 0:02:25]} 9. d3 {[%clk 0:02:48]}  Be6 {[%clk 0:02:17]} 10. Rd1 {[%clk 0:02:47]}  Re8 {[%clk 0:02:10]} 11. Nbd2 {[%clk 0:02:47]}  h6 {[%clk 0:02:06]} 12. Nf1 {[%clk 0:02:47]}  Bd6 {[%clk 0:01:50]} 13. Ng3 {[%clk 0:02:38]}  Qd7 {[%clk 0:01:43]} 14. h3 {[%clk 0:02:31]}  Rad8 {[%clk 0:01:22]} 15. Nh4 {[%clk 0:02:28]}  Bf8 {[%clk 0:01:05]} 16. Nhf5 {[%clk 0:02:27]}  Ne7 {[%clk 0:01:01]} 17. Qf3 {[%clk 0:02:16]}  Bxf5 {[%clk 0:00:55]} 18. exf5 {[%clk 0:02:08]}  c5 {[%clk 0:00:49]} 19. a4 {[%clk 0:02:01]}  b4 {[%clk 0:00:41]} 20. a5 {[%clk 0:02:01]}  Rb8 {[%clk 0:00:36]} 21. Ba4 {[%clk 0:02:00]}  Nc6 {[%clk 0:00:36]} 22. Bd2 {[%clk 0:01:39]}  Qd6 {[%clk 0:00:35]} 23. Re1 {[%clk 0:01:32]}  Re7 {[%clk 0:00:22]} 24. cxb4 {[%clk 0:01:11]}  Nxb4 {[%clk 0:00:22]} 25. Bc3 {[%clk 0:01:00]}  d4 {[%clk 0:00:12]} 26. Bd2 {[%clk 0:01:00]}  Qd5 {[%clk 0:00:12]} 27. Qe2 {[%clk 0:00:57]}  Qb7 {[%clk 0:00:08]} 28. Rac1 {[%clk 0:00:50]}  Qc7 {[%clk 0:00:08]} 29. Bb3 {[%clk 0:00:43]}  Qxa5 {[%clk 0:00:06]} 30. Bc4 {[%clk 0:00:43]}  Qb6 {[%clk 0:00:06]} 31. Nh5 {[%clk 0:00:39]}  Nxh5 {[%clk 0:00:05]} 32. Qxh5 {[%clk 0:00:40]}  Qf6 {[%clk 0:00:02]} 33. Re4 {[%clk 0:00:39]}  Qd6 {[%clk 0:00:02]} 34. Rg4 {[%clk 0:00:37]}  Kh7 {[%clk 0:00:01]} 35. Bxf7 {[%clk 0:00:37]}  Rb6 {[%clk 0:00:02]} 36. Bg6+ {[%clk 0:00:36]}  Kg8 {[%clk 0:00:02]} 37. Bg5 {[%clk 0:00:29]} 1-0


[Site "https://www.chess.com"]

[Event "Titled Tuesday Blitz February 14 Early 2023"]
[White "Md, Imran"]
[Black "Khamdamova, Afruza"]
[WhiteFideId "25748580"]
[BlackFideId "14210444"]
[WhiteElo "2284"]
[BlackElo "2162"]
[Result "1-0"]
[Round "04"]
[TimeControl "180+2"]
[Date "2023.02.15"]
[WhiteClock "0:00:42"]
[BlackClock "0:00:17"]

1. e4 {[%clk 0:03:00]}  e5 {[%clk 0:03:00]} 2. Nf3 {[%clk 0:02:59]}  Nf6 {[%clk 0:03:00]} 3. Nc3 {[%clk 0:02:56]}  Nc6 {[%clk 0:03:00]} 4. Bc4 {[%clk 0:02:50]}  Nxe4 {[%clk 0:03:00]} 5. Nxe4 {[%clk 0:02:38]}  d5 {[%clk 0:03:00]} 6. Bd3 {[%clk 0:02:23]}  Nb4 {[%clk 0:02:58]} 7. Ng3 {[%clk 0:02:20]}  e4 {[%clk 0:02:51]} 8. Bxe4 {[%clk 0:02:13]}  dxe4 {[%clk 0:02:49]} 9. Nxe4 {[%clk 0:02:14]}  Bf5 {[%clk 0:02:46]} 10. Qe2 {[%clk 0:02:05]}  Qe7 {[%clk 0:02:27]} 11. d3 {[%clk 0:02:04]}  O-O-O {[%clk 0:02:23]} 12. O-O {[%clk 0:02:03]}  f6 {[%clk 0:02:14]} 13. a3 {[%clk 0:02:00]}  Nc6 {[%clk 0:02:13]} 14. b4 {[%clk 0:01:59]}  Bg4 {[%clk 0:02:11]} 15. Bb2 {[%clk 0:01:56]}  f5 {[%clk 0:01:55]} 16. Ng3 {[%clk 0:01:55]}  Qxe2 {[%clk 0:01:54]} 17. Nxe2 {[%clk 0:01:53]}  Bxf3 {[%clk 0:01:54]} 18. gxf3 {[%clk 0:01:51]}  Bd6 {[%clk 0:01:55]} 19. Rfe1 {[%clk 0:01:46]}  Be5 {[%clk 0:01:51]} 20. Bxe5 {[%clk 0:01:44]}  Nxe5 {[%clk 0:01:51]} 21. Kg2 {[%clk 0:01:45]}  Rhe8 {[%clk 0:01:50]} 22. f4 {[%clk 0:01:40]}  Nc6 {[%clk 0:01:47]} 23. b5 {[%clk 0:01:35]}  Ne7 {[%clk 0:01:46]} 24. Nc3 {[%clk 0:01:34]}  Ng6 {[%clk 0:01:40]} 25. Kg3 {[%clk 0:01:34]}  h5 {[%clk 0:01:39]} 26. Re3 {[%clk 0:01:32]}  h4+ {[%clk 0:01:39]} 27. Kf3 {[%clk 0:01:32]}  Rg8 {[%clk 0:01:05]} 28. Rg1 {[%clk 0:01:22]}  Nf8 {[%clk 0:01:05]} 29. Re5 {[%clk 0:01:17]}  Rd4 {[%clk 0:00:54]} 30. Ke3 {[%clk 0:00:58]}  Rd6 {[%clk 0:00:46]} 31. Nd5 {[%clk 0:00:54]}  Kd8 {[%clk 0:00:36]} 32. Ne7 {[%clk 0:00:51]}  Rh8 {[%clk 0:00:34]} 33. Nxf5 {[%clk 0:00:50]}  Rf6 {[%clk 0:00:27]} 34. Rd5+ {[%clk 0:00:45]}  Ke8 {[%clk 0:00:20]} 35. Rxg7 {[%clk 0:00:42]}  Ne6 {[%clk 0:00:20]} 36. Re7+ {[%clk 0:00:43]}  Kf8 {[%clk 0:00:20]} 37. Kd2 {[%clk 0:00:43]}  h3 {[%clk 0:00:19]} 38. Rxe6 {[%clk 0:00:42]}  Rxe6 {[%clk 0:00:17]} 39. Rd8+ {[%clk 0:00:42]} 1-0


[Site "https://www.chess.com"]

[Event "Titled Tuesday Blitz February 14 Early 2023"]
[White "Taspinar, Yanki"]
[Black "Manukian, Artak"]
[WhiteFideId "34561188"]
[BlackFideId "13301373"]
[WhiteElo "2262"]
[BlackElo "2196"]
[Result "1-0"]
[Round "04"]
[TimeControl "180+2"]
[Date "2023.02.15"]
[WhiteClock "0:01:22"]
[BlackClock "0:01:16"]

1. Nf3 {[%clk 0:03:00]}  g6 {[%clk 0:02:59]} 2. g3 {[%clk 0:03:01]}  Bg7 {[%clk 0:03:00]} 3. Bg2 {[%clk 0:03:02]}  e5 {[%clk 0:03:01]} 4. O-O {[%clk 0:03:02]}  e4 {[%clk 0:03:00]} 5. Ne1 {[%clk 0:03:02]}  d5 {[%clk 0:03:01]} 6. d3 {[%clk 0:03:03]}  f5 {[%clk 0:03:01]} 7. c4 {[%clk 0:02:57]}  dxc4 {[%clk 0:03:01]} 8. Qa4+ {[%clk 0:02:57]}  Qd7 {[%clk 0:02:48]} 9. Qxc4 {[%clk 0:02:56]}  exd3 {[%clk 0:02:37]} 10. Nxd3 {[%clk 0:02:54]}  Nc6 {[%clk 0:02:32]} 11. Nc3 {[%clk 0:02:47]}  Qe6 {[%clk 0:02:32]} 12. Bd5 {[%clk 0:02:44]}  Qd7 {[%clk 0:02:05]} 13. Bxg8 {[%clk 0:02:35]}  Na5 {[%clk 0:02:05]} 14. Qd5 {[%clk 0:02:28]}  Bxc3 {[%clk 0:01:54]} 15. bxc3 {[%clk 0:02:26]}  Qxd5 {[%clk 0:01:50]} 16. Bxd5 {[%clk 0:02:25]}  c6 {[%clk 0:01:51]} 17. Bf3 {[%clk 0:02:20]}  Be6 {[%clk 0:01:49]} 18. Nc5 {[%clk 0:02:16]}  Bd5 {[%clk 0:01:47]} 19. Bxd5 {[%clk 0:02:14]}  cxd5 {[%clk 0:01:48]} 20. Be3 {[%clk 0:02:13]}  Rc8 {[%clk 0:01:47]} 21. Bd4 {[%clk 0:02:14]}  O-O {[%clk 0:01:46]} 22. Rab1 {[%clk 0:02:13]}  b6 {[%clk 0:01:46]} 23. Nd3 {[%clk 0:02:13]}  Rc4 {[%clk 0:01:44]} 24. Rb4 {[%clk 0:02:12]}  Rfc8 {[%clk 0:01:43]} 25. Rfb1 {[%clk 0:02:11]}  Nc6 {[%clk 0:01:42]} 26. Rxc4 {[%clk 0:02:01]}  dxc4 {[%clk 0:01:43]} 27. Ne5 {[%clk 0:02:01]}  Nxd4 {[%clk 0:01:38]} 28. cxd4 {[%clk 0:02:02]}  c3 {[%clk 0:01:37]} 29. Nd3 {[%clk 0:01:59]}  Kf7 {[%clk 0:01:35]} 30. Kf1 {[%clk 0:01:37]}  Ke6 {[%clk 0:01:34]} 31. e3 {[%clk 0:01:30]}  Kd5 {[%clk 0:01:31]} 32. Ke2 {[%clk 0:01:30]}  Rc4 {[%clk 0:01:27]} 33. Nb4+ {[%clk 0:01:26]}  Kd6 {[%clk 0:01:27]} 34. Kd3 {[%clk 0:01:24]}  b5 {[%clk 0:01:26]} 35. Nc2 {[%clk 0:01:20]}  a6 {[%clk 0:01:25]} 36. Rb3 {[%clk 0:01:20]}  Ra4 {[%clk 0:01:25]} 37. a3 {[%clk 0:01:20]}  Rc4 {[%clk 0:01:15]} 38. Rxc3 {[%clk 0:01:20]}  Rxc3+ {[%clk 0:01:15]} 39. Kxc3 {[%clk 0:01:21]}  a5 {[%clk 0:01:16]} 40. f3 {[%clk 0:01:21]}  Kd5 {[%clk 0:01:16]} 41. Kd3 {[%clk 0:01:21]}  g5 {[%clk 0:01:16]} 42. e4+ {[%clk 0:01:22]}  fxe4+ {[%clk 0:01:16]} 43. fxe4+ {[%clk 0:01:22]} 1-0


[Site "https://www.chess.com"]

[Event "Titled Tuesday Blitz February 14 Early 2023"]
[White "Kavutskiy, Konstantin"]
[Black "Liyanage, Ranindu Dilshan"]
[WhiteFideId "2026384"]
[BlackFideId "9915834"]
[WhiteElo "2414"]
[BlackElo "2342"]
[Result "1-0"]
[Round "04"]
[TimeControl "180+2"]
[Date "2023.02.15"]
[WhiteClock "0:00:17"]
[BlackClock "0:00:05"]

1. d4 {[%clk 0:03:00]}  Nf6 {[%clk 0:02:59]} 2. Bg5 {[%clk 0:03:00]}  d5 {[%clk 0:02:59]} 3. Nd2 {[%clk 0:03:00]}  Nbd7 {[%clk 0:02:59]} 4. e3 {[%clk 0:03:00]}  e6 {[%clk 0:02:58]} 5. Bd3 {[%clk 0:02:58]}  Be7 {[%clk 0:02:58]} 6. c3 {[%clk 0:02:58]}  c5 {[%clk 0:02:59]} 7. f4 {[%clk 0:02:58]}  b6 {[%clk 0:02:58]} 8. Ngf3 {[%clk 0:02:58]}  Bb7 {[%clk 0:02:58]} 9. O-O {[%clk 0:02:57]}  h6 {[%clk 0:02:58]} 10. Bxf6 {[%clk 0:02:51]}  Bxf6 {[%clk 0:02:59]} 11. Ne5 {[%clk 0:02:50]}  O-O {[%clk 0:02:56]} 12. Kh1 {[%clk 0:02:44]}  Rc8 {[%clk 0:02:49]} 13. g4 {[%clk 0:02:37]}  Bxe5 {[%clk 0:02:49]} 14. fxe5 {[%clk 0:02:35]}  f6 {[%clk 0:02:49]} 15. exf6 {[%clk 0:02:25]}  Nxf6 {[%clk 0:02:35]} 16. Qf3 {[%clk 0:02:14]}  Qe7 {[%clk 0:02:30]} 17. Qg3 {[%clk 0:02:12]}  e5 {[%clk 0:02:25]} 18. Bf5 {[%clk 0:01:46]}  Rce8 {[%clk 0:02:23]} 19. Rae1 {[%clk 0:01:42]}  Bc8 {[%clk 0:01:18]} 20. Bxc8 {[%clk 0:01:41]}  Rxc8 {[%clk 0:01:19]} 21. dxe5 {[%clk 0:01:33]}  Nd7 {[%clk 0:01:19]} 22. Rxf8+ {[%clk 0:01:29]}  Rxf8 {[%clk 0:01:20]} 23. e4 {[%clk 0:01:29]}  Qe6 {[%clk 0:01:13]} 24. exd5 {[%clk 0:01:19]}  Qxd5+ {[%clk 0:01:14]} 25. Qg2 {[%clk 0:01:20]}  Qe6 {[%clk 0:01:11]} 26. Qe4 {[%clk 0:01:14]}  Re8 {[%clk 0:01:00]} 27. Qc4 {[%clk 0:01:08]}  Kh7 {[%clk 0:00:29]} 28. Qxe6 {[%clk 0:01:07]}  Rxe6 {[%clk 0:00:30]} 29. Nf3 {[%clk 0:01:07]}  Kg8 {[%clk 0:00:31]} 30. Kg2 {[%clk 0:01:07]}  Kf7 {[%clk 0:00:30]} 31. Kg3 {[%clk 0:01:07]}  Ke7 {[%clk 0:00:30]} 32. h4 {[%clk 0:01:06]}  Nf8 {[%clk 0:00:31]} 33. h5 {[%clk 0:01:04]}  Nd7 {[%clk 0:00:31]} 34. Kf4 {[%clk 0:01:03]}  Nb8 {[%clk 0:00:30]} 35. Nh4 {[%clk 0:01:03]}  Nc6 {[%clk 0:00:30]} 36. Nf5+ {[%clk 0:01:02]}  Kf8 {[%clk 0:00:24]} 37. a3 {[%clk 0:01:00]}  Na5 {[%clk 0:00:20]} 38. Rd1 {[%clk 0:00:57]}  Nc4 {[%clk 0:00:18]} 39. Rd8+ {[%clk 0:00:55]}  Kf7 {[%clk 0:00:19]} 40. Rd7+ {[%clk 0:00:55]}  Kf8 {[%clk 0:00:19]} 41. Nxg7 {[%clk 0:00:48]}  Rxe5 {[%clk 0:00:18]} 42. Nf5 {[%clk 0:00:47]}  Re2 {[%clk 0:00:17]} 43. Nxh6 {[%clk 0:00:44]}  Rf2+ {[%clk 0:00:15]} 44. Kg5 {[%clk 0:00:42]}  Ne5 {[%clk 0:00:14]} 45. Rxa7 {[%clk 0:00:37]}  Rxb2 {[%clk 0:00:14]} 46. Nf5 {[%clk 0:00:31]}  Rg2 {[%clk 0:00:13]} 47. h6 {[%clk 0:00:20]}  Nf7+ {[%clk 0:00:07]} 48. Kf6 {[%clk 0:00:18]}  Ke8 {[%clk 0:00:06]} 49. Re7+ {[%clk 0:00:17]}  Kd8 {[%clk 0:00:05]} 50. Rxf7 {[%clk 0:00:17]} 1-0


[Site "https://www.chess.com"]